bitfinex-derivatives/quotes_ETHF0:USTF0_20251008
["timestamp","ask_amount","ask_price","bid_price","bid_amount"]
[1759928211238,0.3578,4473.7,4473.6,0.7422]
[1759928211435,0.4029,4474.1,4474.0,0.5539]
[1759928211737,0.5818,4474.1,4474.0,0.87]
[1759928212133,0.6936,4474.1,4474.0,0.4439]
[1759928217052,0.3578,4474.1,4474.0,0.87]
[1759928217343,0.5818,4474.1,4474.0,0.87]
[1759928218342,0.5818,4474.1,4474.0,0.6506]
[1759928218640,0.6936,4474.1,4474.0,0.4439]
[1759928221744,0.5818,4474.1,4474.0,0.6506]
[1759928222039,0.5818,4474.1,4474.0,0.87]
[1759928222440,0.224,4474.2,4474.1,0.3161]
[1759928222643,0.224,4474.2,4474.1,0.7422]
[1759928222846,0.5818,4474.2,4474.1,0.7422]
[1759928225243,0.3578,4474.2,4474.1,0.7422]
[1759928225545,0.5818,4474.2,4474.1,0.7422]
[1759928226137,0.224,4474.2,4474.1,0.7422]
[1759928226342,0.5818,4474.2,4474.1,0.3161]
[1759928226541,0.6936,4474.2,4474.1,0.3161]
[1759928226742,0.5818,4474.2,4474.1,0.7422]
[1759928228048,0.224,4474.2,4474.1,0.7422]
[1759928228441,0.4029,4474.2,4474.1,0.7422]
[1759928229848,0.4029,4474.2,4474.1,1.50429556]
[1759928230639,0.5818,4474.2,4474.1,1.50429556]
[1759928233148,1.45569556,4474.2,4473.8,0.3161]
[1759928233356,0.3578,4473.6,4473.5,1.60674374]
[1759928233653,0.4696,4473.5,4473.4,0.3161]
[1759928234151,0.3578,4473.5,4473.4,0.7422]
[1759928234947,0.4696,4473.5,4473.4,0.5228]
[1759928235656,0.4696,4473.5,4473.4,0.3161]
[1759928238260,0.4696,4473.5,4473.4,0.3161]
[1759928238455,0.3578,4473.5,4473.4,0.5228]
[1759928238649,0.3578,4473.5,4473.4,0.7462]
[1759928238851,0.3568,4474.1,4474.0,0.8975]
[1759928239160,0.5808,4474.1,4474.0,0.8975]
[1759928239355,0.1784,4473.6,4473.5,0.1283]
[1759928239560,0.3568,4473.4,4473.3,0.3362]
[1759928240561,0.3568,4473.4,4473.3,0.5458]
[1759928241759,3.2078,4474.2,4473.3,1.19509556]
[1759928242057,0.1784,4473.8,4473.7,0.7692]
[1759928242262,0.3568,4473.8,4473.7,0.7692]
[1759928243265,0.5808,4473.8,4473.7,0.7692]
[1759928244259,3.2078,4474.2,4474.0,0.1283]
[1759928244463,0.4024,4474.1,4474.0,0.8975]
[1759928245061,3.2078,4474.2,4474.1,0.3362]
[1759928245269,3.4318,4474.2,4474.1,0.7692]
[1759928245660,3.6102,4474.2,4474.1,0.7692]
[1759928246264,0.4024,4474.2,4474.1,0.7692]
[1759928246460,0.1784,4474.2,4474.1,0.7692]
[1759928246663,3.2078,4474.7,4474.4,0.7692]
[1759928246866,3.4318,4474.7,4474.4,1.53129556]
[1759928247364,0.18067511,4474.5,4474.4,0.7692]
[1759928247758,0.35907511,4474.5,4474.4,0.7692]
[1759928249065,0.35907511,4474.5,4474.4,1.53129556]
[1759928250267,0.00227511,4474.5,4474.4,1.53129556]
[1759928253776,3.4318,4475.2,4475.0,0.1283]
[1759928254077,3.4318,4475.2,4475.1,1.53129556]
[1759928254373,3.6102,4475.2,4475.1,1.53129556]
[1759928254575,3.7886,4475.2,4475.1,1.53129556]
[1759928254873,3.56720486,4475.2,4475.1,1.53288887]
[1759928255466,0.35940486,4475.2,4475.1,1.53288887]
[1759928256463,0.00260486,4475.2,4475.1,1.53288887]
[1759928257772,0.47090486,4475.2,4475.1,0.33779331]
[1759928257971,0.35940486,4475.2,4475.1,0.54739331]
[1759928258475,0.35940486,4475.2,4475.1,0.77079331]
[1759928261279,0.00260486,4475.2,4475.1,0.77079331]
[1759928266273,0.00260486,4475.2,4475.1,3.97859331]
[1759928269172,0.178,4476.1,4476.0,0.1248]
[1759928269374,0.178,4476.1,4476.0,0.9093]
[1759928269969,0.76209556,4476.6,4476.0,0.9093]
[1759928269970,3.3858,4476.9,4476.8,0.2154]
[1759928270172,3.56609837,4476.9,4476.8,0.5578]
[1759928270374,3.67729837,4476.9,4476.8,0.3424]
[1759928274083,3.56609837,4476.9,4476.8,0.7845]
[1759928275784,4.43939393,4476.9,4476.8,0.5578]
[1759928275978,4.43939393,4476.9,4476.8,0.3424]
[1759928277976,0.178,4476.3,4476.2,0.3424]
[1759928278183,0.356,4476.3,4476.2,0.5578]
[1759928279786,0.4672,4476.3,4476.2,0.5578]
[1759928281590,1.22929556,4476.3,4476.0,0.1248]
[1759928281781,0.4672,4476.2,4476.1,0.3424]
[1759928282686,0.4672,4476.2,4476.1,0.5578]
[1759928286091,0.4672,4476.2,4476.1,0.3424]
[1759928290688,0.356,4476.2,4476.1,0.5578]
[1759928291189,0.58,4476.2,4476.1,0.7845]
[1759928293391,0.356,4476.2,4476.1,0.7845]
[1759928297793,0.4672,4476.2,4476.1,0.5578]
[1759928299894,0.4672,4476.2,4476.1,0.3424]
[1759928300294,0.4672,4476.2,4476.1,0.5512]
[1759928301195,0.356,4476.2,4476.1,0.5512]
[1759928303390,0.356,4475.3,4475.2,0.3422]
[1759928303582,0.6912,4475.3,4475.2,0.3422]
[1759928307690,3.319,4476.0,4475.3,0.3422]
[1759928307893,3.6098,4476.0,4475.9,0.7689]
[1759928308292,3.3858,4476.0,4475.9,0.7689]
[1759928308496,3.6098,4476.0,4475.9,0.7689]
[1759928308892,3.4318,4476.0,4475.9,0.7689]
[1759928309394,0.224,4476.0,4475.9,0.7689]
[1759928309594,0.402,4476.0,4475.9,0.7689]
[1759928310091,0.58,4476.0,4475.9,0.7689]
[1759928311294,0.402,4476.0,4475.9,0.7689]
[1759928311598,3.3858,4476.6,4476.5,0.9049]
[1759928311791,3.6098,4476.6,4476.5,0.9049]
[1759928312793,3.3858,4476.6,4476.5,0.9049]
[1759928312992,3.2078,4476.6,4476.5,0.9049]
[1759928313388,3.3858,4476.6,4476.5,0.9049]
[1759928313895,3.2078,4476.6,4476.5,0.9049]
[1759928316897,0.224,4476.8,4476.5,0.5627]
[1759928317097,0.224,4476.8,4476.7,0.7689]
[1759928318900,0.1112,4477.5,4476.7,0.7689]
[1759928319104,0.224,4477.0,4476.8,0.7689]
[1759928319705,3.2078,4477.6,4476.8,0.7689]
[1759928320206,0.224,4477.3,4476.8,0.7689]
[1759928322001,0.224,4477.4,4476.8,0.7689]
[1759928322205,3.2078,4477.6,4476.8,0.7689]
[1759928322406,0.224,4477.5,4476.8,0.7689]
[1759928323707,3.2078,4477.6,4476.8,0.7689]
[1759928323910,3.4318,4477.6,4476.8,0.7689]
[1759928325209,0.18009837,4476.9,4476.8,0.7689]
[1759928325704,0.00229837,4476.9,4476.8,0.7689]
[1759928325905,0.00229837,4476.9,4476.8,1.71789377]
[1759928329317,0.00229837,4476.9,4476.8,2.11984377]
[1759928329617,0.00229837,4476.9,4476.8,2.34384377]
[1759928329917,0.40423837,4476.9,4476.8,2.34384377]
[1759928330117,0.00229837,4476.9,4476.8,2.34384377]
[1759928330416,0.40423837,4476.9,4476.8,2.34384377]
[1759928330610,0.00229837,4476.9,4476.8,2.34384377]
[1759928332819,0.40423837,4476.9,4476.8,2.34384377]
[1759928333518,0.40423837,4476.9,4476.8,1.94189377]
[1759928333720,0.40423837,4476.9,4476.8,2.34384377]
[1759928335018,0.40423837,4476.9,4476.8,1.39485]
[1759928336118,0.76003837,4476.9,4476.8,0.7689]
[1759928336420,1.82023214,4476.9,4476.8,0.3422]
[1759928336819,0.87123837,4476.9,4476.8,0.3422]
[1759928337020,1.09523837,4476.9,4476.8,0.3422]
[1759928341919,0.58213837,4476.9,4476.8,0.7598]
[1759928342119,0.40423837,4476.9,4476.8,0.7598]
[1759928342319,0.58213837,4476.9,4476.8,0.7598]
[1759928342925,0.40423837,4476.9,4476.8,0.7598]
[1759928343129,0.40423837,4476.9,4476.8,1.16175]
[1759928343325,0.00229837,4476.9,4476.8,1.16175]
[1759928343631,0.40423837,4476.9,4476.8,1.16175]
[1759928344529,0.40423837,4476.9,4476.8,0.7598]
[1759928346327,0.40423837,4476.9,4476.8,1.16175]
[1759928347232,0.40423837,4476.9,4476.8,0.7598]
[1759928349835,0.40423837,4476.9,4476.8,1.52089973]
[1759928350131,0.87123837,4476.9,4476.8,0.5501]
[1759928350332,0.87123837,4476.9,4476.8,0.3422]
[1759928350532,0.76003837,4476.9,4476.8,0.5501]
[1759928350929,0.40423837,4476.9,4476.8,0.7598]
[1759928352226,0.40423837,4476.9,4476.8,1.16175]
[1759928353430,0.00229837,4476.9,4476.8,1.16175]
[1759928354133,0.40424837,4476.9,4476.8,1.16175]
[1759928354327,0.40424837,4476.9,4476.8,1.38575]
[1759928354528,0.40424837,4476.9,4476.8,2.14684973]
[1759928354729,0.00229837,4476.9,4476.8,7.51784973]
[1759928356134,0.022,4477.9,4477.8,1.15096]
[1759928356337,3.7875,4478.4,4478.3,0.7491]
[1759928356539,3.7875,4478.4,4478.3,1.51019973]
[1759928356737,3.9644,4478.4,4478.3,1.51019973]
[1759928357037,3.96712296,4478.4,4478.3,1.51188139]
[1759928357232,4.07772296,4478.4,4478.3,0.33318166]
[1759928357433,9.07772296,4478.4,4478.3,0.00168166]
[1759928357634,12.01295918,4478.4,4478.3,0.00168166]
[1759928358739,12.23695918,4478.4,4478.3,0.00168166]
[1759928360343,0.7503,4477.3,4477.2,0.3314]
[1759928360534,0.9743,4477.3,4477.2,0.5393]
[1759928361138,0.9743,4477.3,4477.2,1.51019973]
[1759928361440,0.9743,4477.3,4477.2,1.51262211]
[1759928363642,0.9743,4477.3,4477.2,0.75152238]
[1759928363839,0.9743,4477.3,4477.2,1.51262211]
[1759928365745,0.7503,4477.3,4477.2,1.51262211]
[1759928365954,0.9743,4477.3,4477.2,1.51262211]
[1759928366450,0.7503,4477.3,4477.2,1.51262211]
[1759928366746,0.9743,4477.3,4477.2,1.51262211]
[1759928370048,0.7503,4477.3,4477.2,1.51262211]
[1759928370253,0.9743,4477.3,4477.2,1.51262211]
[1759928372851,0.9743,4477.3,4477.2,1.91453211]
[1759928373550,0.9743,4477.3,4477.2,1.51262211]
[1759928375252,0.9743,4477.3,4477.2,1.91453211]
[1759928375858,1.0832,4477.3,4477.2,1.15343238]
[1759928376061,1.0832,4477.3,4477.2,0.94363238]
[1759928377659,0.5724,4477.3,4477.2,1.15343238]
[1759928377855,0.5724,4477.3,4477.2,1.91453211]
[1759928378063,0.224,4477.3,4477.2,1.91453211]
[1759928379757,0.3484,4478.0,4477.9,1.15095]
[1759928379963,0.1742,4478.0,4477.9,1.91204973]
[1759928380956,0.1742,4478.0,4477.9,1.15095]
[1759928381158,0.3484,4478.0,4477.9,1.15095]
[1759928381753,0.1742,4478.0,4477.9,1.15095]
[1759928381959,0.224,4478.1,4478.0,0.96004]
[1759928382160,0.399,4478.1,4478.0,1.29074]
[1759928382658,0.00272296,4478.4,4478.3,1.16251]
[1759928382962,0.00272296,4478.4,4478.3,1.92360973]
[1759928386557,3.5582,4479.4,4479.3,0.2113]
[1759928386753,3.5582,4479.4,4479.3,1.30709973]
[1759928386959,3.5582,4479.4,4479.3,0.546]
[1759928387560,0.17788558,4479.4,4479.3,1.53069973]
[1759928388156,0.00268558,4479.4,4479.3,1.53069973]
[1759928388765,0.17788558,4479.4,4479.3,1.53069973]
[1759928390466,0.00268558,4479.4,4479.3,1.53069973]
[1759928394067,0.00268558,4479.4,4479.3,1.75369973]
[1759928394673,0.00268558,4479.4,4479.3,2.15541973]
[1759928398372,0.1752,4480.2,4480.1,0.62525]
[1759928398573,0.1752,4480.2,4480.1,0.83655]
[1759928398771,0.1752,4480.2,4480.1,1.17125]
[1759928399175,0.17745089,4480.2,4480.1,1.17125]
[1759928399769,0.35265089,4480.2,4480.1,1.17125]
[1759928400463,0.00225089,4480.2,4480.1,1.39425]
[1759928401176,0.3504,4479.8,4479.7,0.3347]
[1759928401363,0.3504,4479.8,4479.7,0.546]
[1759928401568,0.3504,4479.8,4479.7,4.37909]
[1759928401768,0.00225089,4480.2,4479.7,4.37909]
[1759928401769,0.35265089,4480.2,4480.1,0.546]
[1759928401972,0.00225089,4480.2,4480.1,2.15534973]
[1759928402679,0.1752,4481.1,4481.0,1.30357]
[1759928402871,0.1752,4481.1,4481.0,0.902]
[1759928403075,0.4599,4481.1,4481.0,0.6784]
[1759928403271,0.4599,4481.1,4481.0,0.4671]
[1759928403570,0.3504,4481.1,4481.0,0.6784]
[1759928403770,0.46184021,4481.1,4481.0,0.68062859]
[1759928403972,0.46184021,4481.1,4481.0,0.33692859]
[1759928404167,5.46184021,4481.1,4481.0,0.00222859]
[1759928404774,5.46184021,4481.1,4481.0,0.33692859]
[1759928405567,5.46184021,4481.1,4481.0,0.00222859]
[1759928407173,0.3504,4479.8,4479.7,0.3347]
[1759928407374,0.4599,4479.8,4479.7,0.3347]
[1759928407568,0.3504,4479.8,4479.7,0.7696]
[1759928407969,0.3504,4479.8,4479.7,0.3347]
[1759928408172,0.4599,4479.8,4479.7,0.33738929]
[1759928408574,0.3504,4479.8,4479.7,1.53338902]
[1759928409877,0.1752,4479.8,4479.7,1.71948777]
[1759928410280,0.1752,4480.4,4480.3,0.4349]
[1759928410476,3.4308,4481.0,4480.5,0.1324]
[1759928410670,0.3504,4480.8,4480.7,2.11839848]
[1759928410876,3.606,4481.0,4480.9,0.7696]
[1759928411379,3.383,4481.0,4480.9,0.7696]
[1759928412374,3.5582,4481.0,4480.9,0.7696]
[1759928412572,3.383,4481.0,4480.9,0.7696]
[1759928415078,3.5582,4481.0,4480.9,0.7696]
[1759928417087,3.5582,4481.0,4480.9,0.546]
[1759928417388,3.667,4481.0,4480.9,0.546]
[1759928417575,3.2078,4481.0,4480.9,0.7632]
[1759928417776,0.00194021,4481.1,4481.0,0.97637]
[1759928417981,0.00194021,4481.1,4481.0,1.30807]
[1759928418777,0.17604021,4481.1,4481.0,1.30807]
[1759928420589,0.35014021,4481.1,4481.0,0.9065]
[1759928422388,0.00194021,4481.1,4481.0,0.9065]
[1759928422985,3.2078,4481.6,4481.5,0.40153]
[1759928423184,3.556,4482.1,4482.0,0.3576]
[1759928423390,3.556,4482.1,4482.0,0.6893]
[1759928423686,3.6648,4482.1,4482.0,0.6893]
[1759928424089,3.66743263,4482.1,4482.0,0.6893]
[1759928425585,4.06890263,4482.1,4482.0,0.4628]
[1759928426291,4.06890263,4482.1,4482.0,0.3317]
[1759928427589,0.00263263,4482.1,4482.0,0.9065]
[1759928427785,0.35083263,4482.1,4482.0,0.9065]
[1759928427986,0.00263263,4482.1,4482.0,0.9065]
[1759928428287,0.17673263,4482.1,4482.0,0.9065]
[1759928428488,0.35083263,4482.1,4482.0,0.9065]
[1759928430989,0.35083263,4482.1,4482.0,1.30798]
[1759928431190,0.17673263,4482.1,4482.0,1.30798]
[1759928432085,0.17673263,4482.1,4482.0,1.53098]
[1759928432592,3.2078,4482.6,4482.0,2.47817848]
[1759928432892,0.022,4482.9,4482.8,1.17681]
[1759928433098,0.022,4482.9,4482.8,2.12400848]
[1759928433896,0.02438054,4482.9,4482.8,2.12400848]
[1759928434792,0.02438054,4482.9,4482.8,2.30583749]
[1759928434997,0.02438054,4482.9,4482.8,2.12400848]
[1759928436692,3.2078,4483.6,4482.8,2.12400848]
[1759928436893,3.2078,4483.6,4482.6,0.223]
[1759928436894,3.556,4483.6,4483.5,1.30785]
[1759928437893,3.55869207,4483.6,4483.5,1.31036769]
[1759928438496,3.38459207,4483.6,4483.5,1.31036769]
[1759928439099,3.21049207,4483.6,4483.5,1.31036769]
[1759928439294,3.21049207,4483.6,4483.5,1.53336769]
[1759928439892,1.18193421,4485.3,4483.5,1.53336769]
[1759928439893,3.2078,4484.1,4484.0,0.5324]
[1759928440098,3.2078,4484.1,4484.0,2.25499848]
[1759928440702,3.2078,4484.1,4484.0,2.47799848]
[1759928441003,3.6648,4484.6,4484.5,0.86405]
[1759928441202,3.55807753,4484.6,4484.5,1.09055]
[1759928441403,3.55807753,4484.6,4484.5,0.6893]
[1759928441807,3.66697753,4484.6,4484.5,0.6893]
[1759928442701,3.66697753,4484.6,4484.5,0.4628]
[1759928442899,3.66697753,4484.6,4483.4,4.2112]
[1759928442900,0.4573,4483.6,4483.5,0.46281769]
[1759928443100,0.223,4483.8,4483.5,0.58171769]
[1759928443302,0.5594,4484.2,4484.1,0.5415]
[1759928443804,0.3484,4484.2,4484.1,0.5415]
[1759928444901,0.3484,4484.2,4484.1,0.7695]
[1759928445407,0.3484,4484.2,4484.1,1.17079]
[1759928446796,3.78127753,4484.6,4484.5,0.52576]
[1759928447002,3.78127753,4484.6,4484.5,1.29806]
[1759928447498,3.89017753,4484.6,4484.5,0.4507]
[1759928448305,3.89017753,4484.6,4484.5,0.85196]
[1759928448799,0.1742,4484.1,4484.0,0.5363]
[1759928448999,0.4573,4484.1,4484.0,0.8625]
[1759928450101,0.4573,4484.1,4483.9,0.40131]
[1759928450301,0.4573,4484.0,4483.9,0.40131]
[1759928450502,0.4573,4483.7,4483.6,0.3262]
[1759928450811,3.2078,4484.0,4483.5,0.40386769]
[1759928450812,0.4573,4483.6,4483.5,0.40386769]
[1759928451910,0.6803,4483.6,4483.5,0.00251769]
[1759928455507,0.5714,4483.6,4483.5,0.67711769]
[1759928455714,0.5714,4483.6,4483.5,0.89931769]
[1759928455908,0.1742,4483.6,4483.5,0.89931769]
[1759928456114,3.382,4484.0,4483.9,0.4461]
[1759928456409,3.382,4484.0,4483.9,1.17361]
[1759928457106,3.2078,4484.0,4483.9,1.17361]
[1759928457613,3.5562,4484.0,4483.9,1.17361]
[1759928458411,0.3484,4484.0,4483.9,1.17361]
[1759928458608,0.1742,4484.0,4483.9,1.17361]
[1759928459709,0.223,4484.2,4484.1,0.40129]
[1759928460008,0.5714,4484.2,4484.1,1.17359]
[1759928460312,3.55827753,4484.6,4484.5,0.74966]
[1759928460510,3.78127753,4484.6,4484.5,1.07586]
[1759928461510,3.89017753,4484.6,4484.5,1.07586]
[1759928461715,3.78127753,4484.6,4484.5,1.07586]
[1759928462515,3.89017753,4484.6,4484.5,0.85196]
[1759928463417,3.78127753,4484.6,4484.5,1.07586]
[1759928464216,3.43287753,4484.6,4484.4,0.40127]
[1759928464419,0.4573,4484.5,4484.4,0.72747]
[1759928464812,0.4573,4484.5,4484.4,0.3262]
[1759928465007,0.4573,4484.5,4484.1,0.3262]
[1759928465008,0.3484,4484.5,4484.1,0.3262]
[1759928465208,0.4573,4484.2,4484.1,0.72749]
[1759928466521,0.3484,4484.2,4484.1,1.17359]
[1759928467019,3.78127753,4484.6,4484.5,1.07586]
[1759928467217,3.89017753,4484.6,4484.5,1.07586]
[1759928467417,3.89017753,4484.6,4484.5,0.85196]
[1759928467921,3.78127753,4484.6,4484.5,1.29806]
[1759928474221,0.57347753,4484.6,4484.5,1.29806]
[1759928475523,0.57347753,4484.6,4484.5,2.05665193]
[1759928477027,0.57347753,4484.6,4484.5,2.05665193]
[1759928478427,0.68227753,4484.6,4484.5,0.85196]
[1759928479530,0.57347753,4484.6,4484.5,1.06906]
[1759928479730,0.35047753,4484.6,4484.5,1.06906]
[1759928481729,0.35047753,4484.6,4484.5,1.28606]
[1759928482023,0.00207753,4484.6,4484.5,1.28606]
[1759928482230,3.3818,4485.1,4485.0,1.29161]
[1759928482423,3.3818,4485.1,4485.0,0.8904]
[1759928482630,3.5558,4485.1,4485.0,0.8904]
[1759928482822,3.5558,4485.1,4485.0,1.29161]
[1759928483225,3.55812031,4485.1,4485.0,1.29161]
[1759928485128,0.35032031,4485.1,4485.0,1.29161]
[1759928485635,0.35032031,4485.1,4485.0,0.8904]
[1759928485840,0.35032031,4485.1,4485.0,0.3195]
[1759928485841,0.45912031,4485.1,4485.0,0.3195]
[1759928486940,0.45912031,4485.1,4485.0,0.6734]
[1759928487742,0.35032031,4485.1,4485.0,0.6734]
[1759928488043,0.35032031,4485.1,4485.0,1.29161]
[1759928488942,0.17632031,4485.1,4485.0,1.29161]
[1759928489143,0.00232031,4485.1,4485.0,2.05020193]
[1759928489344,0.348,4485.7,4485.6,0.7536]
[1759928489748,0.174,4485.7,4485.6,0.7536]
[1759928489938,3.4308,4486.1,4486.0,0.1368]
[1759928490134,3.7788,4486.1,4486.0,0.4563]
[1759928490436,3.88958081,4486.1,4486.0,0.4563]
[1759928490636,3.88958081,4486.1,4486.0,0.3195]
[1759928490837,0.174,4485.9,4485.8,1.07809193]
[1759928491042,0.4568,4485.9,4485.8,1.07809193]
[1759928491241,0.4568,4485.9,4485.8,0.3195]
[1759928491542,0.348,4485.9,4485.8,0.5366]
[1759928491847,3.43278081,4486.1,4486.0,0.8904]
[1759928491848,3.20978081,4486.1,4486.0,0.8904]
[1759928492048,3.38378081,4486.1,4486.0,0.8904]
[1759928492248,3.55778081,4486.1,4486.0,0.8904]
[1759928494446,0.00198081,4486.1,4486.0,0.8904]
[1759928495644,0.174,4486.6,4486.5,1.29148]
[1759928495948,3.5558,4487.1,4487.0,0.4563]
[1759928496146,3.6646,4487.1,4487.0,0.3195]
[1759928496648,3.66656628,4487.1,4487.0,0.32175435]
[1759928496851,3.66656628,4487.1,4487.0,0.45855435]
[1759928497644,3.66656628,4487.1,4487.0,0.67565435]
[1759928497847,3.55776628,4487.1,4487.0,0.67565435]
[1759928499448,3.66656628,4487.1,4487.0,0.67565435]
[1759928499642,3.66656628,4487.1,4487.0,0.45855435]
[1759928499943,3.66656628,4487.1,4487.0,0.67565435]
[1759928500152,3.55776628,4487.1,4487.0,0.67565435]
[1759928501848,3.66646628,4487.1,4487.0,0.45855435]
[1759928502244,3.55776628,4487.1,4487.0,1.63744628]
[1759928502643,3.66646628,4487.1,4487.0,0.45855435]
[1759928502850,3.66646628,4487.1,4487.0,0.00225435]
[1759928503944,4.42505821,4487.1,4487.0,0.00225435]
[1759928504246,7.28836141,4487.1,4487.0,0.00225435]
[1759928505046,3.66646628,4487.1,4487.0,0.33745435]
[1759928505247,3.66646628,4487.1,4487.0,0.46155435]
[1759928505451,3.66646628,4487.1,4487.0,0.33745435]
[1759928506943,3.66646628,4487.1,4487.0,0.46075435]
[1759928507555,3.66646628,4487.1,4487.0,0.33745435]
[1759928507749,3.66646628,4487.1,4487.0,0.46075435]
[1759928508259,3.55776628,4487.1,4487.0,1.07979435]
[1759928508556,3.55776628,4487.1,4487.0,0.89505435]
[1759928508756,3.66656628,4487.1,4487.0,0.46075435]
[1759928509055,3.66656628,4487.1,4487.0,0.67875435]
[1759928509258,3.55776628,4487.1,4487.0,0.67875435]
[1759928510755,3.66656628,4487.1,4487.0,0.67875435]
[1759928510956,3.66656628,4487.1,4487.0,1.07979435]
[1759928511151,0.45876628,4487.1,4487.0,1.07979435]
[1759928511347,0.34996628,4487.1,4487.0,1.07979435]
[1759928511560,0.00196628,4487.1,4487.0,2.05468628]
[1759928511752,0.17596628,4487.1,4487.0,2.05468628]
[1759928512558,0.00196628,4487.1,4487.0,2.05468628]
[1759928512760,0.34996628,4487.1,4487.0,2.05468628]
[1759928512962,0.17596628,4487.1,4487.0,2.05468628]
[1759928513359,0.00196628,4487.1,4487.0,2.05468628]
[1759928514058,0.00196628,4487.1,4487.0,7.05468628]
[1759928518566,0.00196628,4487.1,4487.0,2.05468628]
[1759928520167,0.00196628,4487.1,4487.0,2.27768628]
[1759928520670,0.34996628,4487.1,4487.0,2.27768628]
[1759928520861,0.17596628,4487.1,4487.0,2.27768628]
[1759928521060,0.00196628,4487.1,4487.0,2.27768628]
[1759928521363,3.7788,4488.1,4488.0,1.26845]
[1759928522165,3.7788,4488.1,4487.5,0.3463]
[1759928522166,0.1088,4488.0,4487.5,0.3463]
[1759928522367,0.348,4487.6,4487.5,0.7806]
[1759928522864,0.348,4487.6,4487.5,0.8675]
[1759928523061,0.4568,4487.6,4487.5,0.83419]
[1759928523758,1.10659193,4487.6,4487.3,0.71091]
[1759928523963,0.348,4487.4,4487.3,0.71091]
[1759928524164,0.4568,4487.4,4487.3,0.71091]
[1759928524363,0.348,4487.4,4487.3,0.92891]
[1759928526766,0.348,4487.4,4487.3,0.5279]
[1759928527072,0.4568,4487.1,4487.0,0.00225435]
[1759928527267,0.4568,4487.1,4487.0,0.71319435]
[1759928527658,0.348,4487.1,4487.0,1.05449435]
[1759928528276,0.4568,4487.1,4487.0,1.05449435]
[1759928529059,0.348,4487.1,4487.0,1.05449435]
[1759928529265,0.348,4487.1,4487.0,2.02938628]
[1759928529471,0.174,4487.1,4487.0,2.02938628]
[1759928530371,0.571,4487.5,4487.4,0.9289]
[1759928530570,0.571,4487.5,4487.4,1.1452]
[1759928532866,0.571,4487.5,4487.4,0.7442]
[1759928533267,0.6798,4487.5,4487.4,0.7109]
[1759928533672,0.6798,4487.5,4487.4,0.3099]
[1759928533868,0.174,4487.3,4487.2,0.3099]
[1759928534074,0.4568,4487.3,4487.0,0.43545435]
[1759928534268,0.4568,4487.1,4487.0,0.31215435]
[1759928534869,0.4568,4487.1,4487.0,0.71319435]
[1759928535369,0.4568,4487.1,4487.0,0.00225435]
[1759928535570,0.4568,4487.1,4487.0,0.71319435]
[1759928535770,0.4568,4487.1,4487.0,0.83649435]
[1759928536279,0.4568,4487.1,4487.0,0.00225435]
[1759928536679,1.40084959,4487.1,4487.0,0.00225435]
[1759928536876,4.73735574,4487.1,4487.0,0.00225435]
[1759928537479,4.96035574,4487.1,4487.0,0.00225435]
[1759928537674,0.40109,4486.5,4486.3,1.60272258]
[1759928537970,0.4481,4485.6,4485.5,1.60272258]
[1759928538177,0.4481,4485.4,4485.3,0.3317]
[1759928538366,0.4481,4485.2,4485.1,0.3317]
[1759928538568,0.1707,4484.9,4484.8,0.3317]
[1759928538770,0.1707,4484.9,4484.1,6.01408764]
[1759928538771,0.4481,4484.6,4484.2,1.60272258]
[1759928538970,0.1067,4484.3,4484.2,0.00168935]
[1759928539175,0.4481,4484.3,4484.2,0.00168935]
[1759928540174,0.17324227,4484.9,4484.8,0.2054]
[1759928540374,0.00254227,4484.9,4484.8,0.7632]
[1759928540678,0.17324227,4484.9,4484.8,0.7632]
[1759928540877,0.00254227,4484.9,4484.8,0.7632]
[1759928544272,0.34394227,4484.9,4484.8,0.7632]
[1759928544473,0.4481,4484.7,4484.6,3.5395]
[1759928544679,0.3414,4484.7,4484.6,3.2078]
[1759928544882,0.4481,4484.7,4484.6,3.2078]
[1759928545180,0.4481,4484.7,4484.6,3.5395]
[1759928545580,0.3414,4484.7,4484.6,3.7449]
[1759928546969,0.3414,4484.7,4484.6,3.5395]
[1759928546970,0.4481,4484.7,4484.6,3.5395]
[1759928547378,0.4481,4484.7,4484.6,3.2078]
[1759928547580,0.4481,4484.3,4482.9,3.2078]
[1759928547778,0.3414,4483.2,4483.1,0.73309]
[1759928548176,0.3414,4483.2,4483.1,0.93849]
[1759928548582,0.3414,4483.2,4483.1,0.94065081]
[1759928548781,0.3414,4483.2,4483.1,1.16675081]
[1759928550278,0.1707,4483.2,4483.1,1.16675081]
[1759928551181,0.4481,4483.2,4483.1,0.00216081]
[1759928552580,0.4481,4483.2,4481.3,1.00386]
[1759928552581,0.1707,4482.1,4482.0,0.52988]
[1759928552882,0.3414,4482.1,4482.0,0.4601]
[1759928553574,0.3414,4482.1,4482.0,0.00283828]
[1759928553575,0.4481,4482.1,4482.0,0.00283828]
[1759928553776,6.61562353,4482.1,4482.0,0.00283828]
[1759928554581,0.4481,4481.5,4481.4,3.2078]
[1759928554782,0.6721,4481.5,4481.3,0.3317]
[1759928554979,0.6721,4481.5,4481.4,0.3317]
[1759928555685,0.67473587,4481.5,4481.4,0.33368414]
[1759928557179,0.75213587,4481.5,4481.4,0.00198414]
[1759928557588,3.62941495,4481.5,4481.4,0.00198414]
[1759928557889,0.4481,4480.6,4480.5,0.3317]
[1759928558084,0.6721,4480.6,4480.5,0.3317]
[1759928558791,0.5654,4480.6,4480.5,0.66825235]
[1759928559088,0.5654,4480.6,4480.5,0.89435235]
[1759928560385,0.6721,4480.6,4480.5,0.33445235]
[1759928560588,0.6721,4480.6,4480.5,0.00275235]
[1759928560979,0.6721,4480.6,4480.5,0.46285235]
[1759928561184,3.3785,4480.9,4480.8,0.40159]
[1759928561388,3.6025,4480.9,4480.8,0.7731]
[1759928561582,3.7738,4480.9,4480.8,0.7731]
[1759928561977,3.7738,4480.9,4480.8,0.5501]
[1759928562782,3.5498,4480.9,4480.8,0.7731]
[1759928562983,0.3426,4481.4,4481.3,0.95164]